bitfinex/quotes_ETHUSD_20250815
["timestamp","ask_amount","ask_price","bid_price","bid_amount"]
[1755269482417,0.4456,4517.1,4516.2,2.21422638]
[1755269482968,0.55,4517.7,4515.8,4.005]
[1755269483174,2.21367335,4517.4,4516.5,2.21409536]
[1755269483336,0.55,4517.7,4516.0,0.4552]
[1755269483530,2.21369478,4517.4,4516.5,2.21409601]
[1755269483953,0.4456,4517.3,4516.1,0.71705381]
[1755269484249,0.4456,4517.3,4515.8,0.4552]
[1755269484250,2.21381951,4517.1,4515.9,2.21439801]
[1755269484586,2.21386182,4517.0,4516.2,2.214248]
[1755269484736,0.55,4517.4,4516.3,2.21419475]
[1755269485080,0.55,4517.6,4516.3,2.21419475]
[1755269485384,2.21419995,4516.4,4515.5,2.2145907]
[1755269485550,2.21419995,4516.4,4515.3,0.5035772]
[1755269485551,2.21425922,4516.2,4515.3,2.71822723]
[1755269485878,1.0155,4516.3,4515.3,0.5035772]
[1755269486167,1.0155,4516.3,4514.4,0.4552]
[1755269486168,2.21447074,4515.8,4514.7,2.21498659]
[1755269486387,0.55,4516.0,4514.4,0.4552]
[1755269486550,2.21452886,4515.7,4514.8,2.21493684]
[1755269486961,2.21465457,4515.4,4514.6,2.21503566]
[1755269487167,0.55,4516.0,4514.6,2.21502314]
[1755269487384,2.21451335,4515.7,4514.7,0.26710231]
[1755269487691,2.21459271,4515.6,4514.5,0.0008]
[1755269488011,0.4456,4515.6,4514.5,0.0008]
[1755269488189,2.66016717,4515.6,4514.5,0.0008]
[1755269488362,0.1104,4515.2,4514.6,0.1104]
[1755269488693,0.1104,4515.2,4514.5,0.0008]
[1755269488893,0.4456,4515.1,4514.5,0.0008]
[1755269489107,2.21503566,4514.6,4514.5,0.0008]
[1755269489389,2.32543566,4514.6,4514.5,0.0008]
[1755269489600,2.77103566,4514.6,4514.5,0.0008]
[1755269489784,0.1104,4514.6,4514.5,0.0008]
[1755269489959,2.32543566,4514.6,4514.5,0.0008]
[1755269490153,0.1104,4514.6,4514.5,0.0008]
[1755269490995,2.32543566,4514.6,4514.5,0.0008]
[1755269491858,0.1104,4514.6,4514.5,0.0008]
[1755269492101,0.1096,4514.6,4514.5,0.0008]
[1755269492896,2.32463566,4514.6,4514.5,0.0008]
[1755269493196,2.77023566,4514.6,4514.5,0.0008]
[1755269493505,2.32463566,4514.6,4514.5,0.0008]
[1755269493655,0.1096,4514.6,4514.5,0.0008]
[1755269494095,4.002,4515.5,4514.5,0.0008]
[1755269494314,2.67985291,4516.0,4514.5,0.97405084]
[1755269494473,0.1104,4515.3,4514.8,2.21489897]
[1755269494667,0.73348512,4516.0,4514.9,0.1104]
[1755269494886,0.1104,4515.5,4514.9,0.1104]
[1755269495475,2.21476918,4515.2,4514.9,0.1104]
[1755269495677,0.1104,4515.5,4514.9,0.1104]
[1755269496209,0.55,4515.7,4514.8,0.0008]
[1755269496389,4.002,4516.2,4514.8,0.0008]
[1755269496390,2.21488848,4514.9,4514.8,0.0008]
[1755269496896,2.69198848,4514.9,4514.8,0.0008]
[1755269497097,2.69198848,4514.9,4514.5,0.001]
[1755269497098,2.76503566,4514.6,4514.5,1e-08]
[1755269497399,2.87543566,4514.6,4514.5,1e-08]
[1755269497607,6.32643566,4514.6,4514.5,1e-08]
[1755269498001,8.15373446,4514.6,4514.5,1e-08]
[1755269498199,8.04333446,4514.6,4514.5,1e-08]
[1755269498397,7.81573566,4514.6,4514.5,1e-08]
[1755269498599,6.78863566,4514.6,4514.5,1e-08]
[1755269498814,2.21480736,4515.1,4514.5,1e-08]
[1755269498815,4.0,4515.0,4514.5,1e-08]
[1755269498990,2.32543566,4514.6,4514.5,1e-08]
[1755269499190,0.1104,4514.6,4514.5,1e-08]
[1755269499390,4.0,4515.2,4514.5,2.21504683]
[1755269499584,0.1104,4515.0,4514.5,1e-08]
[1755269500096,0.1104,4515.0,4514.5,2.21508364]
[1755269500299,0.1104,4515.0,4514.5,1e-08]
[1755269500887,0.4622,4515.0,4514.5,1e-08]
[1755269501085,0.1104,4514.6,4514.5,1e-08]
[1755269501621,7.81473566,4514.6,4514.5,1e-08]
[1755269501788,8.81770578,4514.6,4514.5,1e-08]
[1755269502529,12.81770578,4514.6,4514.5,1e-08]
[1755269502687,21.13670578,4514.6,4514.5,1e-08]
[1755269502890,21.13670578,4514.6,4513.5,1e-08]
[1755269502891,2.7655264,4513.6,4513.5,1e-08]
[1755269503093,2.76582096,4513.0,4512.9,1e-08]
[1755269503351,2.87622096,4513.0,4512.9,1e-08]
[1755269503486,0.1104,4513.0,4512.9,1e-08]
[1755269503941,2.32622096,4513.0,4512.9,1e-08]
[1755269504097,4.55921649,4513.0,4512.9,1e-08]
[1755269504304,8.19051649,4513.0,4512.9,1e-08]
[1755269504500,8.66761649,4513.0,4512.9,1e-08]
[1755269504701,12.66761649,4513.0,4512.9,1e-08]
[1755269504902,15.66761649,4513.0,4512.9,1e-08]
[1755269505304,2.76626293,4512.1,4512.0,0.001]
[1755269505503,6.87546293,4512.1,4512.0,0.001]
[1755269505705,7.81476293,4512.1,4512.0,0.001]
[1755269505993,7.65745093,4512.1,4512.0,0.001]
[1755269506429,2.87746293,4512.1,4512.0,0.001]
[1755269506612,6.87546293,4512.1,4512.0,0.001]
[1755269507227,4.1092,4512.1,4512.0,0.001]
[1755269507401,10.32546293,4512.1,4512.0,0.001]
[1755269507797,6.32546293,4512.1,4512.0,0.001]
[1755269508330,6.32446293,4512.1,4512.0,0.001]
[1755269508530,2.32746293,4512.1,4512.0,0.001]
[1755269509019,7.33766293,4512.1,4512.0,0.001]
[1755269509239,7.81476293,4512.1,4512.0,0.001]
[1755269509598,7.81476293,4512.1,4512.0,1e-08]
[1755269509935,3.81676293,4512.1,4512.0,1e-08]
[1755269510141,7.81376293,4512.1,4512.0,1e-08]
[1755269510430,9.3517566,4512.1,4512.0,1e-08]
[1755269510632,12.3517566,4512.1,4512.0,1e-08]
[1755269510929,16.3487566,4512.1,4512.0,1e-08]
[1755269511309,16.3487566,4512.1,4511.0,0.001]
[1755269511310,2.76675422,4511.1,4511.0,1e-08]
[1755269511627,2.21788502,4508.8,4508.1,0.9385]
[1755269511939,2.21788502,4508.8,4508.1,0.1112]
[1755269511940,2.21808471,4508.4,4508.1,0.1112]
[1755269512122,3.22960559,4509.8,4507.5,0.4643]
[1755269512123,0.55,4509.1,4507.6,0.4742]
[1755269512325,0.1112,4508.2,4507.6,0.4742]
[1755269512639,3.997,4508.1,4507.8,0.9385]
[1755269512847,3.997,4508.1,4507.8,1.09534153]
[1755269513041,3.997,4508.1,4507.9,0.9385]
[1755269513246,3.997,4508.1,4507.9,0.4643]
[1755269513548,3.997,4508.1,4507.5,0.1112]
[1755269513723,3.997,4508.1,4507.5,2.32971982]
[1755269513909,3.997,4508.1,4507.5,0.1112]
[1755269514109,3.997,4508.1,4507.0,0.4742]
[1755269514457,0.4622,4509.0,4507.3,0.1112]
[1755269514458,0.1112,4507.9,4507.3,0.1112]
[1755269514652,0.1112,4507.6,4507.0,0.4742]
[1755269514808,3.996,4507.6,4507.0,0.4742]
[1755269515009,0.1112,4507.8,4507.0,0.4742]
[1755269515212,4.1072,4507.8,4507.3,0.1112]
[1755269515523,0.1112,4507.8,4507.4,0.9385]
[1755269515705,0.1112,4507.8,4507.5,0.9385]
[1755269515911,0.1112,4507.8,4507.6,2.2184677]
[1755269516107,0.1112,4508.5,4507.7,0.1112]
[1755269516345,2.21719657,4510.2,4508.8,2.21786653]
[1755269516543,0.1112,4509.3,4508.6,0.1112]
[1755269516723,3.996,4509.2,4508.6,0.1112]
[1755269516920,0.1112,4509.3,4508.8,2.21787612]
[1755269517120,0.1112,4509.3,4508.6,0.1112]
[1755269517335,0.4771,4510.8,4507.7,3.0]
[1755269517336,0.1112,4509.8,4509.2,2.32888828]
[1755269517522,3.995,4509.7,4509.3,2.21763809]
[1755269517722,0.1112,4509.8,4509.4,0.9385]
[1755269517922,3.995,4509.6,4509.5,0.9385]
[1755269518136,0.1112,4510.0,4509.2,0.1112]
[1755269518355,3.995,4509.9,4509.3,2.32879166]
[1755269518558,3.995,4509.9,4509.3,0.1112]
[1755269518749,2.21729366,4510.1,4508.7,0.9385]
[1755269519058,0.1112,4509.4,4508.8,0.1112]
[1755269519354,5.323,4510.9,4506.9,3.995]
[1755269519355,0.1112,4510.0,4509.3,0.1112]
[1755269519553,5.323,4510.9,4509.4,0.9385]
[1755269519756,3.995,4510.4,4509.8,0.1112]
[1755269519931,3.995,4510.4,4508.2,3.0]
[1755269520133,0.1112,4509.4,4508.8,2.32907853]
[1755269520332,0.55,4510.2,4508.3,0.4742]
[1755269520567,0.37064007,4510.1,4509.6,2.21747685]
[1755269520753,0.37064007,4510.1,4508.7,0.1112]
[1755269520754,3.994,4510.1,4509.7,0.4742]
[1755269520952,3.994,4510.1,4509.8,0.9385]
[1755269521255,0.1112,4510.3,4509.9,0.9385]
[1755269521432,0.1112,4510.3,4509.7,0.1112]
[1755269521632,2.21739323,4509.8,4509.7,0.1112]
[1755269521828,3.45133255,4509.8,4509.7,0.1112]
[1755269522029,2.21769198,4509.2,4508.4,2.21808052]
[1755269522331,3.994,4509.1,4507.9,0.9385]
[1755269522532,3.993,4509.0,4508.0,0.4742]
[1755269522845,3.993,4509.0,4508.6,2.21797834]
[1755269523047,3.993,4509.0,4508.6,2.69217834]
[1755269523382,8.323,4510.9,4508.7,0.4742]
[1755269523542,2.21729005,4510.1,4509.2,2.21768695]
[1755269523743,3.993,4510.0,4509.2,0.9385]
[1755269523943,3.993,4509.9,4508.5,0.4742]
[1755269524145,3.993,4509.9,4506.4,2.21905035]
[1755269524146,6.21043029,4509.8,4507.9,0.4742]
[1755269524375,0.55,4509.5,4507.9,0.4742]
[1755269524669,2.21749157,4509.6,4507.9,0.4742]
[1755269524967,2.2179655,4508.7,4507.9,0.4742]
[1755269525267,0.55,4508.7,4507.7,0.001]
[1755269525475,2.21837703,4507.8,4507.7,0.001]
[1755269525671,3.992,4507.8,4507.7,0.001]
[1755269526046,6.21037703,4507.8,4507.7,0.001]
[1755269526790,7.70407703,4507.8,4507.7,0.001]
[1755269528596,3.71207703,4507.8,4507.7,0.001]
[1755269528799,7.70307703,4507.8,4507.7,0.001]
[1755269529297,6.20937703,4507.8,4507.7,0.001]
[1755269529497,7.65707536,4507.8,4507.7,0.001]
[1755269529697,8.15677536,4507.8,4507.7,0.001]
[1755269530161,8.61795969,4507.8,4507.7,0.001]
[1755269530360,4.12725969,4507.8,4507.7,0.001]
[1755269530597,4.12725969,4507.8,4507.4,0.001]
[1755269530598,2.21894054,4506.7,4505.5,2.21949551]
[1755269530798,0.55,4506.5,4505.1,0.2257752]
[1755269531214,3.99,4506.4,4505.0,0.038]
[1755269531360,0.9437,4506.5,4505.0,0.038]
[1755269531565,2.21921395,4506.1,4505.0,0.038]
[1755269531773,6.20928748,4506.0,4505.0,0.038]
[1755269532101,0.55,4505.8,4505.0,0.038]
[1755269532264,0.1112,4505.3,4505.0,0.038]
[1755269532464,0.55,4505.1,4505.0,0.038]
[1755269532681,2.76970655,4505.1,4505.0,0.038]
[1755269533001,0.1112,4505.3,4505.0,0.038]
[1755269533228,3.99,4505.2,4505.0,0.038]
[1755269533388,0.1112,4505.3,4505.0,0.038]
[1755269533590,3.99,4505.2,4505.0,0.038]
[1755269534008,3.99,4505.2,4505.0,2.25775139]
[1755269534190,3.989,4505.1,4505.0,0.038]
[1755269534388,0.41012,4505.2,4505.0,0.038]
[1755269534629,3.989,4505.1,4505.0,0.038]
[1755269535145,7.70240655,4505.1,4505.0,0.038]
[1755269535292,11.16311023,4505.1,4505.0,0.038]
[1755269536031,11.16311023,4505.1,4504.5,0.003]
[1755269536032,2.76995293,4504.6,4504.5,0.003]
[1755269536238,4.0,4504.6,4504.5,0.003]
[1755269536407,4.0,4504.6,4504.5,0.466]
[1755269536589,4.0,4504.6,4504.5,0.003]
[1755269536590,3.21395293,4504.6,4504.5,0.003]
[1755269536789,4.43394822,4504.6,4504.5,0.003]
[1755269537433,8.43394822,4504.6,4504.5,0.003]
[1755269537795,4.0,4504.6,4504.5,0.003]
[1755269538198,3.989,4504.9,4504.5,0.003]
[1755269538399,2.21995293,4504.6,4504.5,0.003]
[1755269538637,3.21395293,4504.6,4504.5,0.003]
[1755269539023,0.55,4504.2,4502.1,0.463]
[1755269539235,2.22053424,4503.5,4502.1,3.00059992]
[1755269539482,2.22059378,4503.3,4501.8,0.9431]
[1755269539624,2.22059378,4503.3,4502.2,2.22113335]
[1755269539829,2.22072558,4503.1,4501.8,0.463]
[1755269540126,6.20955256,4503.4,4502.3,2.22107533]
[1755269540323,3.989,4503.4,4500.7,3.0]
[1755269540528,0.3989,4503.3,4500.8,4.2431]
[1755269540747,0.55,4503.2,4500.9,0.9431]
[1755269540961,2.22074314,4503.0,4501.9,2.2212379]
[1755269541169,3.988,4503.0,4502.0,0.463]
[1755269541462,3.988,4503.8,4502.1,0.4801]
[1755269541629,3.988,4503.8,4503.3,2.22055201]
[1755269541827,3.988,4504.6,4503.9,2.22026294]
[1755269542026,3.988,4504.7,4503.4,0.9431]
[1755269542229,0.62077593,4504.7,4503.9,0.0008]
[1755269542429,3.988,4504.9,4503.9,0.0008]
[1755269542430,3.988,4504.9,4504.0,2.22024866]
[1755269542756,4.432,4504.9,4503.9,0.0008]
[1755269543066,0.55,4504.8,4503.9,0.0008]
[1755269543266,4.432,4504.9,4503.9,0.0008]
[1755269543267,2.22024866,4504.0,4503.9,0.0008]
[1755269543489,6.98027353,4504.0,4503.9,0.0008]
[1755269543788,7.92397353,4504.0,4503.9,0.0008]
[1755269543930,3.987,4504.0,4503.9,0.0008]
[1755269544242,3.987,4504.8,4503.9,0.4809]
[1755269544430,0.1112,4504.3,4503.9,0.0008]
[1755269544832,0.45936821,4505.5,4504.0,0.9431]
[1755269545067,2.21885292,4505.3,4504.0,0.9431]
[1755269545273,6.34926286,4506.6,4504.1,0.463]
[1755269545485,2.2189198,4506.7,4504.2,0.0222015]
[1755269545776,0.1112,4506.1,4505.5,2.33070126]
[1755269545987,0.1112,4506.1,4505.5,1.0543]
[1755269546149,3.987,4506.9,4505.9,0.1112]
[1755269546150,0.1112,4506.8,4505.9,0.1112]
[1755269546483,0.1112,4506.8,4506.4,2.21906621]
[1755269546936,0.1112,4506.8,4506.2,2.32551889]
[1755269547131,0.1112,4506.8,4506.4,0.9431]
[1755269547388,3.987,4507.6,4506.4,3.16216621]
[1755269547546,0.1112,4507.4,4506.4,3.16216621]
[1755269547881,1e-08,4506.5,4506.4,6.16216621]
[1755269548079,1e-08,4506.5,4506.4,6.27336621]
[1755269548251,1e-08,4506.5,4506.4,7.55511155]
[1755269548574,1e-08,4506.5,4506.4,11.54011155]
[1755269548775,1e-08,4506.5,4506.4,7.71889605]
[1755269548986,1e-08,4506.5,4506.4,17.03389605]
[1755269549147,0.444,4510.3,4506.9,21.44767341]
[1755269549349,0.1112,4509.7,4507.9,3.0]
[1755269549548,0.1112,4509.7,4509.2,0.1112]
[1755269550044,0.1112,4509.7,4508.7,0.1112]
[1755269550045,0.444,4509.7,4508.7,0.1112]
[1755269550246,0.1112,4508.8,4507.1,0.463]
[1755269550436,0.4997,4509.6,4508.0,0.1112]
[1755269550437,2.21773746,4509.1,4508.0,0.1112]
[1755269550632,0.1112,4508.3,4507.3,0.1112]
[1755269550859,0.1112,4508.0,4507.3,0.1112]
[1755269551078,0.1112,4508.0,4507.8,2.21835379]
[1755269551247,0.1112,4508.0,4507.9,0.9431]
[1755269551447,2.21817624,4508.3,4507.2,2.2186234]
[1755269551653,6.20069773,4509.2,4507.1,0.9431]
[1755269551654,3.983,4509.2,4507.5,0.1112]
[1755269551855,0.57526286,4510.0,4507.1,0.4801]
[1755269551856,0.1112,4508.7,4508.1,0.1112]
[1755269552050,0.46025919,4510.0,4508.1,0.23294904]
[1755269552251,0.9437,4510.6,4509.0,0.1112]
[1755269552252,0.1112,4509.6,4509.0,0.1112]
[1755269552451,0.1112,4509.6,4508.3,0.1112]
[1755269552452,0.1112,4508.9,4508.3,0.1112]
[1755269552866,0.1112,4508.9,4507.5,0.463]
[1755269553135,0.1112,4508.9,4506.7,0.463]
[1755269553136,0.55,4508.8,4506.7,0.463]
[1755269553460,2.21862312,4507.3,4507.2,0.1112]
[1755269553665,4.426,4508.0,4506.1,2.21918074]
[1755269553875,4.426,4508.0,4505.9,0.463]
[1755269553876,0.49257,4507.9,4505.9,0.463]
[1755269554382,2.21855209,4507.5,4506.0,2.2192632]
[1755269554539,0.49257,4507.9,4506.0,2.2192632]
[1755269554540,2.21837743,4507.8,4506.8,2.21886524]
[1755269554739,0.49257,4507.9,4506.1,0.9431]
[1755269554740,0.49257,4507.9,4506.5,0.463]
[1755269554939,2.21842356,4507.8,4506.8,2.21886401]
[1755269555141,2.21823658,4508.1,4506.7,2.21891379]
[1755269555341,0.55,4507.9,4506.1,0.4801]
[1755269555666,2.21883408,4506.9,4505.9,2.68229616]
[1755269555984,0.444,4507.0,4505.3,2.21956726]
[1755269556143,0.55,4506.5,4505.0,0.001]
[1755269556347,2.21922417,4506.1,4505.0,0.001]
[1755269556662,2.21931267,4505.9,4505.0,0.001]
[1755269556867,2.2195585,4505.5,4505.0,0.001]
[1755269557070,4.70039677,4506.4,4505.0,0.001]
[1755269557071,4.25689677,4506.4,4505.0,0.001]
[1755269557240,2.2190222,4506.5,4505.2,2.21965728]
[1755269557440,0.4435,4506.6,4505.1,0.67117978]
[1755269557670,0.55,4506.3,4505.0,0.001]
[1755269557855,0.55,4506.4,4505.0,0.001]
[1755269558042,0.8954,4506.2,4505.0,0.001]
[1755269558238,0.14454,4506.1,4505.0,0.001]
[1755269558476,0.8954,4506.2,4505.0,0.001]
[1755269558893,2.21921395,4506.1,4505.0,0.001]
[1755269559042,3.11457897,4506.2,4505.0,0.001]
[1755269559247,0.8954,4506.2,4505.1,2.21966387]
[1755269559458,3.11456558,4506.2,4505.0,0.001]
[1755269559785,3.979,4506.7,4505.1,2.21970655]
[1755269559944,3.979,4506.7,4505.0,0.22307882]
[1755269560143,2.21912874,4506.3,4505.4,2.21955064]
[1755269560346,0.4435,4506.9,4505.0,0.001]
[1755269560578,0.4435,4506.9,4505.2,2.21965728]
[1755269560778,2.21863977,4507.3,4505.3,0.9347]
[1755269560979,2.21863977,4507.3,4506.3,2.21911083]
[1755269561194,2.21883233,4506.9,4505.3,0.9347]
[1755269561474,0.8954,4506.8,4505.0,0.001]
[1755269561656,0.55,4506.7,4505.0,0.001]
[1755269561983,0.8954,4506.8,4505.2,2.21960866]
[1755269562159,2.66237906,4506.8,4505.8,2.21931355]
[1755269562371,0.4435,4506.8,4505.2,2.21962848]
[1755269562558,0.4435,4506.8,4505.3,0.22206285]
[1755269562758,0.55,4506.7,4505.0,0.001]
[1755269563086,2.21900725,4506.6,4505.0,0.001]
[1755269563293,0.4435,4506.8,4505.6,2.21941666]
[1755269563585,0.1112,4506.0,4505.5,2.21947077]
[1755269563787,0.1112,4506.0,4505.5,2.67449867]
[1755269563966,0.1112,4506.0,4505.0,0.001]
[1755269563967,0.4435,4505.9,4505.1,2.2197029]
[1755269564161,0.4435,4505.9,4505.0,0.001]
[1755269564162,0.1112,4505.5,4505.0,0.001]
[1755269564589,0.1112,4505.9,4505.2,0.1112]
[1755269564904,2.21970655,4505.1,4505.0,0.001]
[1755269565068,2.21995293,4504.6,4504.5,0.001]
[1755269565393,0.33319529,4504.6,4504.5,0.001]
[1755269565563,3.22655293,4504.6,4504.5,0.001]
[1755269566093,2.77465293,4504.6,4504.5,0.001]
[1755269566306,3.22655293,4504.6,4504.5,0.001]
[1755269566856,2.77465293,4504.6,4504.5,0.001]
[1755269567185,3.22575293,4504.6,4504.5,0.001]
[1755269567391,4.71791402,4504.6,4504.5,0.001]
[1755269567705,8.71791402,4504.6,4504.5,0.001]
[1755269568963,7.22575293,4504.6,4504.5,0.001]
[1755269569165,0.55,4504.5,4501.9,2.22126032]
[1755269569381,2.22106089,4502.4,4501.4,0.1112]
[1755269569692,0.1112,4502.0,4501.4,0.1112]
[1755269569891,0.1112,4502.2,4501.5,2.22148172]
[1755269570067,0.1112,4502.2,4501.6,2.22142229]
[1755269570391,0.1112,4502.2,4501.5,0.4554269]
[1755269570587,0.4519,4503.1,4501.4,0.4491]
[1755269570797,0.1112,4502.4,4501.8,2.22129114]
[1755269570959,0.1112,4502.4,4501.7,0.1112]
[1755269572107,0.1112,4502.4,4501.6,2.22142571]
[1755269572256,2.22105441,4502.4,4501.5,0.1112]
[1755269572457,2.2213174,4501.9,4501.0,5.0]
[1755269572659,0.1112,4501.3,4501.2,2.22162978]
[1755269572982,0.1112,4501.3,4501.0,5.0]
[1755269573159,4.41919617,4502.4,4501.1,0.9347]
[1755269573363,2.22119643,4502.1,4501.0,5.0]
[1755269573694,0.1112,4501.9,4501.2,2.33280685]
[1755269574113,0.1112,4501.9,4501.6,2.22141783]
[1755269574397,0.1112,4501.9,4501.4,2.22150045]
[1755269574581,0.1112,4501.9,4501.4,2.22152102]
[1755269574782,0.1112,4501.9,4501.3,2.22157914]
[1755269574981,4.0862,4501.9,4501.2,0.1112]
[1755269575198,3.975,4501.9,4501.4,2.22152201]
[1755269575693,0.4435,4502.5,4501.0,5.0]
[1755269575694,3.975,4501.8,4501.0,5.0]
[1755269575908,0.1112,4501.5,4501.0,5.0]
[1755269576262,2.77153107,4501.4,4501.0,5.0]
[1755269576592,0.1112,4501.1,4501.0,5.0]
[1755269576905,2.77197533,4500.5,4500.0,0.037]
[1755269577144,3.974,4500.5,4500.0,0.037]
[1755269577714,0.4435,4500.5,4500.0,0.037]
[1755269577927,0.55,4501.0,4500.0,0.037]
[1755269578272,3.974,4500.5,4500.2,2.22211223]
[1755269578523,0.14454,4500.9,4500.0,0.037]
[1755269578524,3.974,4500.6,4500.0,0.037]
[1755269578723,6.19592721,4500.6,4500.0,0.037]
[1755269578923,3.974,4500.6,4500.0,0.037]
[1755269579132,2.22197533,4500.5,4500.0,0.037]
[1755269579288,3.974,4500.6,4500.0,0.037]
[1755269579489,0.11079999,4501.5,4500.0,0.037]
[1755269579725,0.55,4501.3,4500.0,0.037]
[1755269579929,2.22162978,4501.2,4500.2,2.22211919]
[1755269580241,0.55,4500.9,4500.2,2.22212217]
[1755269580390,0.55,4501.1,4500.0,0.037]
[1755269580586,0.11079999,4501.5,4501.4,2.22153107]
[1755269580823,0.11079999,4501.5,4500.7,2.2218419]
[1755269581033,0.11079999,4501.5,4500.5,0.9347]
[1755269581194,0.11079999,4501.5,4500.9,2.22173168]
[1755269581386,0.11079999,4501.5,4500.4,0.001]
[1755269581387,0.11079999,4501.5,4500.4,2.22301894]
[1755269581587,0.11079999,4501.5,4500.8,2.22181608]
[1755269581789,0.11079999,4501.5,4500.5,0.9347]
[1755269582011,0.11079999,4501.5,4500.9,2.22177284]
[1755269582186,0.11079999,4501.5,4501.4,2.22153107]
[1755269582390,0.11079999,4501.5,4501.0,2.70729841]
[1755269582641,0.11079999,4501.5,4501.1,2.22164675]
[1755269582942,0.11079999,4501.5,4501.0,2.67079237]
[1755269583088,0.11079999,4501.5,4501.4,2.22153107]
[1755269583719,0.11079999,4501.5,4501.4,3.15623107]
[1755269583918,0.11079999,4501.5,4501.4,0.9347]
[1755269584135,0.11079999,4501.5,4500.8,0.4856]
[1755269584335,0.11079999,4501.5,4501.0,2.22172444]
[1755269584552,0.11079999,4501.5,4500.5,0.001]
[1755269584839,0.11079999,4501.5,4500.8,2.22182221]
[1755269585042,0.11079999,4501.5,4500.7,2.22182871]
[1755269585237,0.11079999,4501.5,4500.5,0.001]
[1755269585238,2.22164653,4501.2,4500.5,0.001]
[1755269585439,3.972,4501.1,4500.5,0.001]
[1755269585963,2.77192596,4500.6,4500.5,0.001]
[1755269586414,0.9883,4500.6,4500.5,0.001]
[1755269586615,3.972,4500.6,4500.5,0.001]
[1755269586918,0.1112,4500.6,4500.5,0.001]
[1755269587457,0.1104,4500.6,4500.5,0.001]
[1755269587641,2.77062596,4500.6,4500.5,0.001]
[1755269587821,3.78842596,4500.6,4500.5,0.001]
[1755269588018,4.7866515,4500.6,4500.5,0.001]
[1755269588212,4.6762515,4500.6,4498.3,0.4714]
[1755269588422,0.55,4500.3,4498.8,2.22281414]
[1755269588626,0.4383,4500.5,4498.5,2.22294675]
[1755269588627,0.55,4499.9,4498.5,2.22294675]
[1755269588855,3.971,4499.8,4498.2,0.003]
[1755269589038,3.971,4499.8,4498.9,2.22272926]
[1755269589254,3.971,4499.7,4498.4,0.4714]
[1755269589455,3.4383,4500.9,4499.2,2.22257452]
[1755269589734,7.64909078,4500.5,4498.7,2.22284272]
[1755269589920,2.22247034,4499.5,4498.5,2.2229164]
[1755269590150,3.971,4499.4,4498.5,2.2229632]
[1755269590458,3.971,4499.4,4498.2,0.003]
[1755269590760,3.971,4499.4,4498.9,2.2227598]
[1755269591057,3.971,4499.4,4498.7,2.22282597]
[1755269591273,3.971,4499.4,4498.6,2.22290969]
[1755269591470,3.971,4499.4,4498.8,2.22279087]
[1755269591771,0.4383,4500.3,4498.3,0.4714]
[1755269591922,0.11079999,4501.5,4498.2,0.4574]
[1755269591923,3.97,4499.9,4498.4,0.9258]
[1755269592267,3.97,4500.0,4498.7,2.22282203]
[1755269592449,2.22236616,4499.8,4498.5,2.2229632]
[1755269592762,2.22237038,4499.7,4498.4,0.9266]
[1755269592959,0.55,4499.8,4498.4,0.0008]
[1755269593162,0.55,4499.8,4498.5,2.2229577]
[1755269593163,2.22254218,4499.4,4498.5,2.2229577]
[1755269593378,0.55,4499.6,4498.4,0.0008]
[1755269593675,0.4383,4500.5,4498.5,0.9258]
[1755269593874,5.334,4501.2,4498.6,3.9258]
[1755269594038,1.59255847,4501.4,4500.1,2.22212587]
[1755269594039,3.97,4501.3,4500.1,2.22212587]
[1755269594235,3.97,4501.3,4500.8,2.22182118]
[1755269594439,4.0,4500.9,4500.8,2.22182118]
[1755269594665,1.12395847,4501.4,4500.9,2.22173316]
[1755269594885,1.12395847,4501.4,4500.8,0.44437212]
[1755269595039,2.2217144,4501.1,4500.0,2.6935804]
[1755269595241,6.19158728,4501.3,4500.3,2.22204316]
[1755269595460,2.22163113,4501.2,4500.0,0.4714]
[1755269595667,2.22168006,4501.1,4500.0,0.78620572]
[1755269595869,2.2217676,4501.0,4500.0,2.69361757]
[1755269596067,3.97,4501.3,4500.0,0.4714]
[1755269596456,3.34549594,4501.4,4500.0,0.4714]
[1755269596457,1.12395847,4501.4,4500.0,0.4714]
[1755269596780,1.12395847,4501.4,4500.2,2.22212346]
[1755269596979,1.12395847,4501.4,4500.9,2.22175296]
[1755269597150,1.12395847,4501.4,4501.0,2.22172789]
[1755269597346,1.12395847,4501.4,4501.0,0.4714]
[1755269597566,1.12395847,4501.4,4501.0,2.6931225]
[1755269597782,1.12395847,4501.4,4501.1,2.22166784]
[1755269597968,1.12395847,4501.4,4501.2,2.22162629]
[1755269598482,1.12395847,4501.4,4501.0,0.4714]
[1755269598651,1.12395847,4501.4,4501.2,2.22158561]
[1755269598981,1.23515847,4501.4,4501.2,2.22158162]
[1755269599286,1.23515847,4501.4,4501.3,2.22158043]
[1755269599688,4.43036217,4502.3,4501.7,2.22135091]
[1755269599885,0.1112,4501.8,4501.1,0.1112]
[1755269600086,0.1112,4501.7,4501.2,2.22160557]
[1755269600263,0.1112,4501.7,4501.1,0.1112]
[1755269600464,0.46336217,4502.4,4501.2,2.69302978]
[1755269600715,0.46336217,4502.6,4501.3,0.4714]
[1755269600990,0.1112,4502.5,4501.8,0.1112]
[1755269601190,0.1112,4502.5,4501.9,2.22128434]
[1755269601356,0.1112,4502.5,4501.8,2.33252484]
[1755269601687,0.1112,4502.5,4501.8,0.1112]
[1755269601888,0.1132,4502.5,4501.8,0.1112]
[1755269602053,0.1132,4502.5,4501.9,2.22124228]
[1755269602252,2.22104608,4502.4,4501.6,2.22139426]
[1755269602497,0.1112,4502.1,4501.6,2.22139426]
[1755269602789,0.1112,4502.1,4501.5,0.1112]